{"text_format":"1","workbook":"xlsx","n_sheets":2,"sheets":["Продуктовая корзина","Итог_2018_06_15 12_32_14"],"not_rendered":{"charts":0,"images":0,"macros":1,"external_links":0,"defined_names":0,"comments":0,"pivot_tables":0},"unopened":[],"bounds":{"document_bytes":16777216,"sheet_cells":100000,"rows_first":2000,"rows_last":500,"rows_between":2000,"halvings":0,"cell_chars":16384,"cell_head_chars":4096},"cells_cut":0,"cells_raw":0,"read":"whole","date_system":"1900"}

{"sheet":"Продуктовая корзина","index":0,"n_rows":52,"n_cols":8,"rows_kept":52,"cut":false,"hidden":false,"merged":[[35,0,36,0],[35,4,36,4],[29,0,30,0],[1,0,2,0],[10,0,11,0],[1,4,2,4],[21,4,22,4],[26,4,27,4]]}
[null,"Кол-во","Цена","Итого",null,"Кол-во","Цена","Итого"]
["Мясо и рыба",null,null,{"$f":"B2*C2","v":0},"Бакалея",null,null,{"$f":"F2*G2","v":0}]
[null,null,null,0,null,null,null,0]
["Цыпленок охл.",null,5,0,"Пельмени",null,null,0]
["Грудка куриная",null,5,0,"Макароны",null,null,0]
["Голень куриная копч.",null,5,0,"Гречка",null,5,0]
["Фарш",null,5,0,"Панир. сухари",null,null,0]
["Свинина",null,3,0,"Сахар",null,null,0]
["Говядина",null,1,0,"Рис",null,null,0]
[null,null,null,0,"Соль",null,null,0]
["Фрукты и овощи",null,null,0,"Фасоль",null,null,0]
[null,null,null,0,"Горох",null,null,0]
["Лимон",null,null,0,"Овсянка",null,null,0]
["Яблоки",null,1,0,"Пшено",null,null,0]
["Бананы",null,null,0,"Крупа кукурузная",null,null,0]
["Апельсины",null,100,0,"Мука",null,1,0]
["Мандарины",null,134.5,0,"Шоколад",null,3,0]
["Груши",null,5,0,"Сода",null,null,0]
["Кабачки",null,null,0,"Хлеб",null,6,0]
["Капуста",null,8,0,"Чай",null,null,0]
["Лук",null,null,0,null,null,null,0]
["Морковь",null,null,0,"Соусы",null,null,0]
["Зелень",null,null,0,null,null,null,0]
["Помидоры",null,10,0,"Майонез",1,null,0]
["Огурцы",null,null,0,"Кетчуп",null,null,0]
["Чеснок",null,null,0,null,null,null,0]
["Картофель",null,null,0,"Консервы",null,null,0]
["Грибы",null,null,0,null,null,null,0]
[null,null,null,0,"Оливки",null,null,0]
["Детское питание",null,null,0,"Горошек",null,null,0]
[null,null,null,0,"Кукуруза",null,3,0]
["Смесь",1,4,4,"Икра",null,null,0]
["Каша",null,null,0,"Сайра",null,null,0]
["Вода",null,null,{"$f":"B34*C34","v":0},"Тушенка",null,null,0]
[null,null,null,0,null,null,null,0]
["Быт",null,null,0,"Косметика",null,null,0]
[null,null,null,0,null,null,null,0]
["Ср-во для м. пос.",null,null,0,"Влажные салфетки",null,1,0]
["Зуб. паста",null,99,0,"Шампунь",null,1,0]
["Чистящее средство",null,null,0,"Мыло",null,null,0]
["Спички",null,null,0,"Туалетная бумага",null,null,0]
["Пленка пищевая",null,null,0,"Памперсы",null,null,0]
["Рукав для запекания",null,null,0,"Прокладки",null,null,0]
["Фольга",null,null,0]
["Бумага для выпечки",null,null,0]
["Губки для посуды",null,null,0]
["Губки железные",null,null,0]
["Перчатки",null,null,0]
["Стиральный порошок",null,null,0]
["Лампочки",null,null,0]
[]
[null,null,null,null,"Итого:",null,{"$f":"SUM(D:D,H:H)","v":4}]

{"sheet":"Итог_2018_06_15 12_32_14","index":1,"n_rows":4,"n_cols":8,"rows_kept":4,"cut":false,"hidden":false,"merged":[[1,4,2,4],[1,0,2,0]]}
[null,null,null,{"$f":"B1*C1","v":0},null,null,null,{"$f":"F1*G1","v":0}]
["Детское питание",null,null,0,"Соусы",null,null,0]
[null,null,null,0,null,null,null,0]
["Смесь",1,4,4,"Майонез",1,null,0]